[Event "SWE-ch 65 2019"]
[Site "Eskilstuna"]
[Date "2019.07.14"]
[Round "9.2"]
[White "Alquist, Erik"]
[Black "Blomstrom, Lars"]
[Result "1-0"]
[ECO "B12"]
[WhiteElo "1976"]
[BlackElo "2153"]
[Annotator "ChessBase"]
[PlyCount "83"]
[EventDate "2019.07.06"]
[EventType "tourn"]
[EventCountry "SWE"]
[SourceTitle "playchess.com"]
[Source "ChessBase"]
[SourceQuality "1"]
[TimeControl "40/5400+30:1800+30"]

1. e4 {[%emt 0:00:00]} c6 {[%emt 0:00:07]} 2. d4 {[%emt 0:00:00]} d5 {[%emt 0:00:03]} 3. e5 {[%emt 0:00:14]} c5 {[%emt 0:00:06]} 4. dxc5 {[%emt 0:00:21]} e6 {[%emt 0:05:19]} 5. a3 {[%emt 0:01:59]} Bxc5 {[%emt 0:00:08]} 6. Nf3 {[%emt 0:01:46]} Ne7 {[%emt 0:01:19]} 7. b4 {[%emt 0:04:47]} Bb6 {[%emt 0:00:05]} 8. Be2 {[%emt 0:03:55]} a5 {[%emt 0:01:53]} 9. b5 {[%emt 0:08:19]} a4 {[%emt 0:02:37]} 10. O-O {[%emt 0:00:58]} Nd7 {[%emt 0:05:45]} 11. Bb2 {[%emt 0:01:34]} Nc5 {[%emt 0:12:26]} 12. Nbd2 {[%emt 0:03:33]} Ng6 {[%emt 0:08:06]} 13. Re1 {[%emt 0:09:32]} O-O {[%emt 0:01:08]} 14. Bf1 {[%emt 0:02:38]} Bd7 {[%emt 0:05:43]} 15. Nd4 {[%emt 0:03:50]} f6 {[%emt 0:01:30]} 16. exf6 {[%emt 0:05:15]} gxf6 {[%emt 0:00:09]} 17. Qh5 {[%emt 0:02:01]} e5 {[%emt 0:21:19]} 18. Nf5 {[%emt 0:02:39]} Bxf5 {[%emt 0:00:03]} 19. Qxf5 {[%emt 0:00:03]} Qd7 {[%emt 0:00:18]} 20. Qh5 {[%emt 0:04:48]} Ne6 {[%emt 0:03:21]} 21. g3 {[%emt 0:02:56]} Rae8 {[%emt 0:05:34]} 22. Rad1 {[%emt 0:02:03]} Qg7 {[%emt 0:04:04]} 23. Nf3 {[%emt 0:03:25]} Rd8 {[%emt 0:04:02]} 24. Qg4 {[%emt 0:04:53]} Nc5 {[%emt 0:02:40]} 25. Bg2 {[%emt 0:05:07]} f5 {[%emt 0:07:17]} 26. Qb4 {[%emt 0:03:11]} Ne4 {[%emt 0:00:15]} 27. Re2 {[%emt 0:01:08]} f4 {[%emt 0:01:03]} 28. Kf1 {[%emt 0:00:56]} fxg3 {[%emt 0:00:34]} 29. hxg3 {[%emt 0:00:53]} Qh6 {[%emt 0:02:02]} 30. Rxe4 {[%emt 0:06:32]} dxe4 {[%emt 0:00:13]} 31. Rxd8 {[%emt 0:00:08]} Rxd8 {[%emt 0:01:33]} 32. Qxe4 {[%emt 0:00:40]} Qf8 {[%emt 0:01:03]} 33. Qg4 {[%emt 0:05:06]} Qd6 {[%emt 0:03:44]} 34. Nxe5 {[%emt 0:02:12]} Qd1+ {[%emt 0:00:28]} 35. Qxd1 {[%emt 0:00:12]} Rxd1+ {[%emt 0:00:01]} 36. Ke2 {[%emt 0:00:32]} Rb1 {[%emt 0:01:21]} 37. Nd3 {[%emt 0:01:07]} Nf8 {[%emt 0:00:33]} 38. Bxb7 {[%emt 0:00:44]} Nd7 {[%emt 0:00:08]} 39. Bd5+ {[%emt 0:01:41]} Kf8 {[%emt 0:00:01]} 40. Bc3 {[%emt 0:03:06]} Rg1 {[%emt 0:01:26]} 41. Bb4+ {[%emt 0:33:13]} Kg7 {[%emt 0:00:56]} 42. c4 {[%emt 0:00:00]} 1-0

[Event "SWE-ch 65 2019"]
[Site "Eskilstuna"]
[Date "2019.07.14"]
[Round "9.3"]
[White "Westin, Ake"]
[Black "Svensson, Soren"]
[Result "1-0"]
[ECO "A03"]
[WhiteElo "1975"]
[BlackElo "1944"]
[Annotator "NA"]
[PlyCount "83"]
[EventDate "2019.07.06"]
[EventType "tourn"]
[EventCountry "SWE"]
[SourceTitle "playchess.com"]
[Source "ChessBase"]
[SourceQuality "1"]
[TimeControl "40/5400+30:1800+30"]

1. f4 {[%emt 0:00:00]} d5 {[%emt 0:00:00]} 2. Nf3 {[%emt 0:00:06]} Nf6 {[%emt 0:00:07]} 3. e3 {[%emt 0:00:19]} g6 {[%emt 0:00:23]} 4. Be2 {[%emt 0:00:37]} Bg7 {[%emt 0:00:10]} 5. O-O {[%emt 0:00:21]} O-O {[%emt 0:00:13]} 6. d3 {[%emt 0:02:14]} c5 {[%emt 0:00:30]} 7. Qe1 {[%emt 0:00:26]} Nc6 {[%emt 0:01:31]} 8. a4 {[%emt 0:01:15]} Bf5 {[%emt 0:03:40]} 9. h3 {[%emt 0:08:46]} h5 {[%emt 0:01:39]} 10. Nh4 {[%emt 0:04:44]} Bd7 {[%emt 0:07:21]} 11. Qg3 {[%emt 0:04:29]} e6 {[%emt 0:06:56]} 12. Nd2 {[%emt 0:05:55]} Qc7 {[%emt 0:08:41]} 13. e4 {[%emt 0:02:49]} Ne7 {[%emt 0:05:18]} 14. e5 {[%emt 0:01:27]} Ne8 {[%emt 0:02:08]} 15. c3 {[%emt 0:02:00]} a5 {[%emt 0:08:02]} 16. Ndf3 {[%emt 0:03:16]} Qb6 {[%emt 0:07:45]} 17. Bd2 {[%emt 0:11:24]} Rd8 {[%emt 0:13:05]} 18. Rfb1 {[%emt 0:02:24]} Nc6 {[%emt 0:02:21]} 19. Nxg6 {[%emt 0:05:45]} fxg6 {[%emt 0:01:50]} 20. Qxg6 {[%emt 0:00:07]} Nf6 {[%emt 0:15:44]} 21. exf6 {[%emt 0:02:55]} Rxf6 {[%emt 0:00:10]} 22. Qxh5 {[%emt 0:02:07]} Be8 {[%emt 0:03:13]} 23. Qh4 {[%emt 0:02:07]} Bg6 {[%emt 0:04:37]} 24. Ne5 {[%emt 0:06:52]} Nxe5 {[%emt 0:02:21]} 25. fxe5 {[%emt 0:00:10]} Rff8 {[%emt 0:00:20]} 26. Qg3 {[%emt 0:05:11]} Bf5 {[%emt 0:00:50]} 27. Bg4 {[%emt 0:06:53]} c4+ {[%emt 0:02:40]} 28. Kh1 {[%emt 0:02:38]} Bxd3 {[%emt 0:00:30]} 29. Be3 {[%emt 0:01:33]} Qc6 {[%emt 0:00:37]} 30. Re1 {[%emt 0:02:28]} Rde8 {[%emt 0:00:23]} 31. Bh5 {[%emt 0:02:45]} Re7 {[%emt 0:00:50]} 32. Bg6 {[%emt 0:00:28]} Bxg6 {[%emt 0:00:46]} 33. Qxg6 {[%emt 0:00:12]} Ref7 {[%emt 0:00:42]} 34. h4 {[%emt 0:03:45]} Rf5 {[%emt 0:00:42]} 35. Bd4 {[%emt 0:01:00]} Rf4 {[%emt 0:00:41]} 36. g3 {[%emt 0:01:36]} Rf3 {[%emt 0:00:17]} 37. Kg2 {[%emt 0:00:11]} Rd3 {[%emt 0:00:51]} 38. Rf1 {[%emt 0:03:34]} Qd7 {[%emt 0:00:28]} 39. Rxf8+ {[%emt 0:00:32]} Kxf8 {[%emt 0:00:02]} 40. Rf1+ {[%emt 0:00:28]} Kg8 {[%emt 0:00:07]} 41. Rf2 {[%emt 0:30:33]} Qxa4 {[%emt 0:09:17]} 42. h5 {[%emt 0:00:00]} 1-0

[Event "SWE-ch 65 2019"]
[Site "Eskilstuna"]
[Date "2019.07.14"]
[Round "9.4"]
[White "Korning, Peter"]
[Black "Gillefalk, Bjorn"]
[Result "1-0"]
[ECO "D78"]
[WhiteElo "1964"]
[BlackElo "2071"]
[Annotator "NA"]
[PlyCount "30"]
[EventDate "2019.07.06"]
[EventType "tourn"]
[EventCountry "SWE"]
[SourceTitle "playchess.com"]
[Source "ChessBase"]
[SourceQuality "1"]
[TimeControl "40/5400+30:1800+30"]

1. Nf3 {[%emt 0:00:00]} d5 {[%emt 0:00:00]} 2. g3 {[%emt 0:00:00]} Nf6 {[%emt 0:00:15]} 3. Bg2 {[%emt 0:00:00]} g6 {[%emt 0:00:41]} 4. O-O {[%emt 0:00:00]} Bg7 {[%emt 0:00:02]} 5. d4 {[%emt 0:00:09]} O-O {[%emt 0:00:18]} 6. c4 {[%emt 0:00:05]} c6 {[%emt 0:00:04]} 7. Qb3 {[%emt 0:00:10]} dxc4 {[%emt 0:05:04]} 8. Qxc4 {[%emt 0:00:31]} b5 {[%emt 0:00:45]} 9. Qc2 {[%emt 0:05:46]} Bf5 {[%emt 0:05:26]} 10. Qd1 {[%emt 0:01:08]} Qb6 {[%emt 0:07:31]} 11. a4 {[%emt 0:12:50]} bxa4 {[%emt 0:16:23]} 12. Qxa4 {[%emt 0:05:25]} Nbd7 {[%emt 0:03:06]} 13. Nbd2 {[%emt 0:14:02]} c5 {[%emt 0:27:30]} 14. Nc4 {[%emt 0:02:45]} Qd8 {[%emt 0:01:22]} 15. Nfe5 {[%emt 0:08:59]} Be4 {[%emt 0:04:00]} 1-0